fUSD/lending_fUSD_20251119
["ID","MTS","AMOUNT","RATE_DAILY","PERIOD"]
[394454646,1763590243845,-243.41253436,0.00017998,2]
[394454647,1763590243856,-256.58746564,0.00017998,2]
[394454648,1763590243865,-500.0,0.00017999,2]
[394454649,1763590243874,-500.0,0.00017999,2]
[394454650,1763590243887,-500.0,0.00017999,2]
[394454651,1763590243898,-905783.4125348,0.00018,2]
[394454652,1763590243909,-1949.93748,0.00018,2]
[394454653,1763590244729,-1010.47467433,0.00018,2]
[394454658,1763590246029,-323.70279272,0.00017674,2]
[394454659,1763590246039,-2683.40384514,0.00018,2]
[394454660,1763590246091,-938.43794,0.00018,2]
[394454661,1763590246152,-1000.4995,0.00018,2]
[394454662,1763590246213,-2006.62381347,0.00018,2]
[394454663,1763590246384,-639.22380711,0.00018,2]
[394454673,1763590267965,500.0,0.00042119,30]
[394454674,1763590268574,500.0,0.00042119,30]
[394454675,1763590269187,500.0,0.00042119,30]
[394454676,1763590269810,500.0,0.00042119,30]
[394454677,1763590270408,500.0,0.00042119,30]
[394454683,1763590334440,214.83418799,0.00042119,30]
[394454736,1763590870925,499.5,0.00032877,120]
[394454780,1763591207761,12265.56245315,0.00042061,30]
[394454781,1763591212638,5000.00553973,0.000162,5]
[394454791,1763591427037,315.66,8.277e-05,2]
[394454792,1763591427250,315.66,8.712e-05,2]
[394454793,1763591427473,315.66,9.148e-05,2]
[394454794,1763591427701,315.66,9.584e-05,2]
[394454795,1763591427928,315.66,0.00010019,2]
[394454796,1763591428178,315.66,0.00010455,2]
[394454797,1763591428400,315.66,0.0001089,2]
[394454798,1763591428612,315.66,0.00011326,2]
[394454799,1763591428915,315.66,0.00011762,2]
[394454800,1763591429204,315.66,0.00012197,2]
[394454801,1763591429453,315.66,0.00012633,2]
[394454802,1763591429669,315.66,0.00013068,2]
[394454803,1763591429885,315.66,0.00013504,2]
[394454804,1763591430116,315.66,0.0001394,2]
[394454805,1763591430407,315.66,0.00014375,2]
[394454806,1763591430633,315.66,0.00014811,2]
[394454807,1763591430848,315.66,0.00015247,2]
[394454808,1763591431056,315.66,0.00015682,2]
[394454816,1763591432032,-315.66,0.00016118,2]
[394454819,1763591432042,-315.66,0.00016553,2]
[394454821,1763591432052,-500.0,0.00016571,2]
[394454823,1763591432061,-182.01310552,0.00016604,2]
[394454824,1763591432070,-300.0,0.00016628,2]
[394454825,1763591432079,-250.0,0.00016652,2]
[394454826,1763591432088,-5535.89,0.000167,2]
[394454827,1763591432098,-1200.0,0.00016702,2]
[394454828,1763591432107,-896.35,0.00016703,2]
[394454829,1763591432117,-1000.0,0.00016746,2]
[394454830,1763591432125,-300.0,0.00016815,2]
[394454831,1763591432135,-26625.81,0.00016816,2]
[394454832,1763591432145,-300.0,0.00016843,2]
[394454833,1763591432154,-443.34,0.00016869,2]
[394454834,1763591432164,-2751.0,0.00016869,2]
[394454835,1763591432173,-182.01310552,0.0001697,2]
[394454836,1763591432182,-175.0,0.00017,2]
[394454837,1763591432192,-31119.76758599,0.00017,2]
[394454838,1763591432201,-1110.46860719,0.00017071,2]
[394454839,1763591432213,-12660.69139281,0.00017071,2]
[394454840,1763591432223,-2641.0,0.00017302,2]
[394454841,1763591432232,-1000.0,0.00017356,2]
[394454842,1763591432241,-2641.0,0.00017414,2]
[394454843,1763591432250,-1733.0,0.00017501,2]
[394454844,1763591432259,-1733.0,0.00017505,2]
[394454845,1763591432268,-3405.31370491,0.00017505,2]
[394454846,1763591432283,-665.74930137,0.00017505,2]
[394454847,1763591432298,-5928.92699372,0.00017505,2]
[394454848,1763591432308,-2641.0,0.0001754,2]
[394454849,1763591432317,-2641.0,0.00017606,2]
[394454850,1763591432327,-6766.9,0.00017651,2]
[394454851,1763591432497,-403.0,0.000177,5]
[394454852,1763591432508,-1000.0,0.000177,2]
[394454853,1763591432517,-222.35315505,0.00017753,2]
[394454854,1763591432527,-500.0,0.00017756,2]
[394454855,1763591432536,-349.34000565,0.00017756,2]
[394454856,1763591432545,-500.0,0.00017756,2]
[394454857,1763591432554,-500.0,0.00017756,2]
[394454858,1763591432564,-531.02729672,0.00017756,2]
[394454859,1763591432573,-150.99,0.00017757,2]
[394454860,1763591432582,-9999.99,0.00017757,2]
[394454861,1763591432591,-422.1,0.00017757,2]
[394454862,1763591432601,-9999.99,0.00017757,2]
[394454863,1763591432611,-32043.03,0.00017757,2]
[394454864,1763591432621,-499.99,0.00017757,2]
[394454865,1763591432630,-299.99,0.00017757,4]
[394454866,1763591432639,-1985.61,0.00017757,2]
[394454867,1763591432649,-999.99,0.00017757,2]
[394454868,1763591432658,-9999.99,0.00017757,2]
[394454869,1763591432668,-1000.0,0.00017766,2]
[394454870,1763591432677,-1000.0,0.00017766,2]
[394454871,1763591432687,-1000.0,0.00017766,2]
[394454872,1763591432696,-1000.0,0.00017766,2]
[394454873,1763591432706,-1000.0,0.00017766,2]
[394454874,1763591432715,-348.62602521,0.00017766,2]
[394454875,1763591432727,-651.37397479,0.00017766,2]
[394454876,1763591432737,-1000.0,0.00017766,2]
[394454877,1763591432746,-150.0,0.00017769,2]
[394454878,1763591432755,-500.0,0.00017773,2]
[394454879,1763591432765,-500.0,0.00017773,2]
[394454880,1763591432774,-261.0,0.00017794,2]
[394454881,1763591432783,-1000.0,0.00017799,2]
[394454882,1763591432792,-2721.843,0.000178,2]
[394454883,1763591432802,-200.481,0.000178,2]
[394454884,1763591432810,-5241.4562,0.000178,2]
[394454885,1763591432820,-234.87,0.000178,2]
[394454886,1763591432830,-3724.2581,0.000178,2]
[394454887,1763591432839,-1247.2735,0.000178,2]
[394454888,1763591432848,-2500.0,0.000178,2]
[394454889,1763591432858,-211.30203944,0.000178,2]
[394454890,1763591432867,-211.30203939,0.00017814,2]
[394454891,1763591432876,-211.30203939,0.00017829,2]
[394454892,1763591432886,-211.30203939,0.00017843,2]
[394454893,1763591432896,-211.30203939,0.00017857,2]
[394454894,1763591432905,-211.30203939,0.00017871,2]
[394454895,1763591432914,-510.65948477,0.00017873,2]
[394454896,1763591432923,-500.0,0.00017873,2]
[394454897,1763591432934,-500.0,0.00017873,2]
[394454898,1763591432943,-307.63788583,0.00017873,2]
[394454899,1763591432952,-272.28885771,0.00017873,2]
[394454900,1763591432961,-500.0,0.00017873,2]
[394454901,1763591432970,-500.0,0.00017873,2]
[394454902,1763591432979,-500.0,0.00017873,2]
[394454903,1763591432989,-500.0,0.00017873,2]
[394454904,1763591432998,-555.97474422,0.00017873,2]
[394454905,1763591433007,-501.09339419,0.00017873,2]
[394454906,1763591433016,-500.01402634,0.00017873,2]
[394454907,1763591433026,-520.55704999,0.00017873,2]
[394454908,1763591433035,-500.0,0.00017873,2]
[394454909,1763591433044,-500.0,0.00017873,2]
[394454910,1763591433054,-211.30203939,0.00017886,2]
[394454912,1763591433063,-500.0,0.00017899,2]
[394454914,1763591433074,-500.0,0.00017899,2]
[394454916,1763591433083,-308.1116775,0.00017899,2]
[394454918,1763591433092,-341.92730566,0.00017899,2]
[394454920,1763591433101,-645.2142247,0.00017899,2]
[394454921,1763591433110,-500.0,0.00017899,2]
[394454923,1763591433120,-500.0,0.00017899,2]
[394454924,1763591433129,-500.0,0.00017899,2]
[394454925,1763591433139,-500.0,0.00017899,2]
[394454926,1763591433148,-500.0,0.00017899,2]
[394454927,1763591433157,-585.822539,0.00017899,2]
[394454928,1763591433166,-741260.98254597,0.000179,2]
[394454934,1763591438098,-5821.24485936,0.00017657,2]
[394454935,1763591438108,-2500.0,0.00017799,2]
[394454936,1763591438118,-1054.59,0.00017899,2]
[394454937,1763591438128,-1054.59,0.00017899,2]
[394454938,1763591438138,-1054.59,0.00017899,2]
[394454939,1763591438147,-18739.01745403,0.000179,2]
[394454940,1763591438158,-1597.92027417,0.000179,2]
[394454941,1763591438168,-211.30203939,0.000179,2]
[394454942,1763591438177,-381.58217503,0.000179,2]
[394454943,1763591438186,-2879.56660176,0.000179,2]
[394454944,1763591438196,-507.04210842,0.000179,2]
[394454945,1763591438206,-150.19,0.00017911,2]
[394454946,1763591438215,-993.66732103,0.00017921,2]
[394454947,1763591438225,-298.67,0.00017921,2]
[394454948,1763591438234,-500.0,0.00017973,2]
[394454949,1763591438244,-500.0,0.00017973,2]
[394454951,1763591438254,-500.0,0.00017973,2]
[394454952,1763591438264,-500.0,0.00017973,2]
[394454953,1763591438273,-500.0,0.00017973,2]
[394454954,1763591438286,-500.0,0.00017973,2]
[394454955,1763591438296,-295.91820015,0.00017973,2]
[394454956,1763591438306,-500.0,0.00017973,2]
[394454957,1763591438316,-500.0,0.00017973,2]
[394454958,1763591438327,-180.5217076,0.00017973,2]
[394454959,1763591438338,-496.43366972,0.00017973,2]
[394454960,1763591438348,-315.85569772,0.00017973,2]
[394454961,1763591438358,-161.55812693,0.00017973,2]
[394454962,1763591438368,-500.0,0.00017973,2]
[394454963,1763591438378,-500.0,0.00017973,2]
[394454964,1763591438387,-500.0,0.00017973,2]
[394454965,1763591438397,-500.0,0.00017973,2]
[394454966,1763591438408,-500.0,0.00017973,2]
[394454967,1763591438418,-164.76118439,0.00017973,2]
[394454968,1763591438427,-546.49659787,0.00017973,2]
[394454969,1763591438437,-500.0,0.00017973,2]
[394454970,1763591438448,-500.0,0.00017973,2]
[394454971,1763591438457,-500.0,0.00017973,2]
[394454972,1763591438467,-500.0,0.00017973,2]
[394454973,1763591438477,-500.0,0.00017973,2]
[394454974,1763591438487,-500.0,0.00017973,2]
[394454975,1763591438496,-500.0,0.00017973,2]
[394454976,1763591438506,-500.0,0.00017973,2]
[394454977,1763591438516,-500.0,0.00017973,2]
[394454978,1763591438527,-500.0,0.00017973,2]
[394454979,1763591438536,-500.0,0.00017973,2]
[394454980,1763591438546,-500.0,0.00017973,2]
[394454981,1763591438556,-500.0,0.00017973,2]
[394454982,1763591438567,-500.0,0.00017973,2]
[394454983,1763591438576,-1028.30015271,0.0001799,2]
[394454984,1763591438586,-1028.30015271,0.0001799,2]
[394454985,1763591438596,-1028.30015271,0.0001799,2]
[394454986,1763591438606,-151.0,0.00017997,2]
[394454987,1763591438615,-500.0,0.00017999,2]
[394454988,1763591438625,-500.0,0.00017999,2]
[394454989,1763591438634,-500.0,0.00017999,2]
[394454990,1763591438643,-500.0,0.00017999,2]
[394454991,1763591438654,-500.0,0.00017999,2]
[394454992,1763591438663,-500.0,0.00017999,2]
[394454993,1763591438672,-328.42672177,0.00017999,2]
[394454994,1763591438681,-1054.59,0.00017999,2]
[394454995,1763591438691,-1054.59,0.00017999,2]
[394454996,1763591438702,-1054.59,0.00017999,2]
[394454997,1763591438712,-1054.59,0.00017999,2]
[394454998,1763591438722,-3231.0,0.00018,2]
[394454999,1763591438732,-123299.83488349,0.00018,2]
[394455000,1763591438743,-151.0,0.00018,2]
[394455001,1763591438754,-287354.54742602,0.00018,2]
[394455002,1763591438764,-271.27168457,0.00018,2]
[394455003,1763591438775,-79751.1121322,0.00018,2]
[394455004,1763591438785,-20835.7419008,0.00018,2]
[394455005,1763591438796,-44975.5032913,0.00018,2]
[394455006,1763591438806,-270700.4116056,0.00018,2]
[394455007,1763591438815,-29983.9159747,0.00018,2]
[394455008,1763591438825,-5852.9105682,0.00018,2]
[394455009,1763591438839,-6214995.74813948,0.00018,2]
[394455022,1763591440115,-500.0,0.00017756,2]
[394455024,1763591440125,-294.091,0.00017756,2]
[394455026,1763591440134,-1601.1808,0.000179,2]
[394455028,1763591440143,-4731.89693449,0.00018,2]
[394455031,1763591440157,-935.22870437,0.00018,2]
[394455033,1763591440168,-20500.44549381,0.00018,2]
[394455043,1763591440371,-2482475.95040407,0.00018,2]
[394455083,1763591446169,-1189.0,0.00017684,2]
[394455084,1763591446181,-871.56206,0.00017684,2]
[394455085,1763591446464,-1723.0954988,0.00017684,2]
[394455086,1763591446476,-2037.58730047,0.00017684,2]
[394455087,1763591446485,-2482.41269953,0.00017711,2]
[394455090,1763591468095,508.674547,7.945e-05,2]
[394455092,1763591525302,250.0,0.00042062,30]
[394455093,1763591526107,250.0,0.00042062,30]
[394455094,1763591526694,250.0,0.00042062,30]
[394455095,1763591527328,250.0,0.00042062,30]
[394455096,1763591527965,250.0,0.00042062,30]
[394455097,1763591528596,250.0,0.00042062,30]
[394455098,1763591529217,250.0,0.00042062,30]
[394455099,1763591529826,250.0,0.00042062,30]
[394455100,1763591530511,250.0,0.00042062,30]
[394455101,1763591531174,250.0,0.00042062,30]
[394455102,1763591531776,250.0,0.00042062,30]
[394455103,1763591535198,500.0,0.00042062,30]
[394455104,1763591535837,500.0,0.00042062,30]
[394455105,1763591536455,500.0,0.00042062,30]
[394455106,1763591537083,500.0,0.00042062,30]
[394455107,1763591537714,500.0,0.00042062,30]
[394455108,1763591538345,500.0,0.00042062,30]
[394455109,1763591538981,500.0,0.00042062,30]
[394455110,1763591539623,500.0,0.00042062,30]
[394455111,1763591540238,500.0,0.00042062,30]
[394455112,1763591540855,500.0,0.00042062,30]
[394455113,1763591541467,500.0,0.00042062,30]
[394455114,1763591542100,500.0,0.00042062,30]
[394455115,1763591542738,500.0,0.00042062,30]
[394455116,1763591543384,500.0,0.00042062,30]
[394455117,1763591544060,500.0,0.00042062,30]
[394455118,1763591544689,500.0,0.00042062,30]
[394455119,1763591545310,500.0,0.00042062,30]
[394455120,1763591545942,500.0,0.00042062,30]
[394455121,1763591546658,500.0,0.00042062,30]
[394455122,1763591547268,500.0,0.00042062,30]
[394455124,1763591585599,500.0,0.00042062,30]
[394455125,1763591586215,500.0,0.00042062,30]
[394455126,1763591586531,6888.0,0.00042062,30]
[394455127,1763591587173,7142.856,0.00042062,30]
[394455128,1763591587805,7407.141672,0.00042062,30]
[394455129,1763591588419,7681.20591386,0.00042062,30]
[394455130,1763591589045,7965.41053268,0.00042062,30]
[394455131,1763591589719,8260.13072239,0.00042062,30]
[394455132,1763591590328,8565.75555911,0.00042062,30]
[394455133,1763591590963,8882.6885148,0.00042062,30]
[394455134,1763591591668,9211.34798985,0.00042062,30]
[394455135,1763591592258,9552.16786547,0.00042062,30]
[394455136,1763591592897,9552.16786547,0.00042062,30]
[394455137,1763591601356,299.99,0.00017421,4]
[394455150,1763591744090,468.41,0.00013699,2]
[394455151,1763591754813,649.72,0.0001689,3]
[394455152,1763591849856,-263.25930092,0.00016395,2]
[394455153,1763591892643,-446.53305701,0.00016275,2]
[394455154,1763591894717,-261.59948895,0.00016275,2]
[394455155,1763591897595,-195.34258665,0.00016275,2]
[394455156,1763591899795,-266.399158,0.00016275,2]
[394455157,1763591901969,-196.17,0.00016275,2]
[394455158,1763591904016,-549.99999983,0.00016275,2]
[394455159,1763591906290,-218.84,0.00016275,2]
[394455160,1763591908337,-164.06876657,0.00016275,2]
[394455163,1763592027535,-150.0,0.0001622,2]
[394455164,1763592027559,-270.22,0.00016275,2]
[394455165,1763592057540,-265.90041448,0.00016098,2]
[394455166,1763592089892,-200.0,0.00016061,2]
[394455167,1763592089914,-73.29088291,0.00016098,2]
[394455169,1763592117528,-174.66870261,0.00016098,2]
[394455170,1763592117550,-10.80828594,0.00016168,2]
[394455171,1763592120283,-297.39,0.00016168,2]
[394455172,1763592121808,-312.0,0.00016168,2]
[394455173,1763592124243,-801.36451612,0.00016168,2]
[394455175,1763592170345,166.66,0.00015279,2]
[394455176,1763592170660,166.66,0.00015601,2]
[394455177,1763592170872,166.66,0.00015923,2]
[394455178,1763592194356,5901.79907288,0.00042104,120]
[394455179,1763592201111,299.99,0.00016566,4]
[394455183,1763592308586,2726.78,0.00015844,2]
[394455186,1763592347388,-300.0,0.00016167,2]
[394455187,1763592347412,-1200.0,0.00016167,2]
[394455188,1763592347437,-157.8088648,0.00016168,2]
[394455189,1763592347461,-5874.9765136,0.00016168,2]
[394455193,1763592377578,1600.0,0.00015925,2]
[394455202,1763592510894,321.34,0.00015718,2]
[394455210,1763592569679,155.22,0.00012584,2]
[394455212,1763592632259,-284.80850437,0.00016154,2]
[394455213,1763592632269,-1200.0,0.00016167,2]
[394455214,1763592632278,-8759.73068434,0.00016168,2]
[394455215,1763592632288,-300.0,0.00016198,2]
[394455216,1763592632297,-300.0,0.00016198,2]
[394455217,1763592632306,-163.25948278,0.000162,2]
[394455218,1763592632315,-212.29707876,0.000162,2]
[394455219,1763592632325,-159.74963523,0.000162,2]
[394455220,1763592632335,-150.0,0.000162,2]
[394455221,1763592632344,-150.0,0.000162,2]
[394455222,1763592632354,-346.66485979,0.00016229,2]
[394455223,1763592632363,-166.66,0.00016244,2]
[394455224,1763592632372,-166.66,0.00016248,2]
[394455225,1763592632381,-2331.03694299,0.00016275,2]
[394455226,1763592632390,-205.18681533,0.00016294,2]
[394455227,1763592632401,-141.47804446,0.00016294,2]
[394455228,1763592632410,-10730.38021085,0.00016338,2]
[394455229,1763592632419,-1000.0,0.00016393,2]
[394455230,1763592632429,-550.0,0.00016393,2]
[394455231,1763592632438,-2177.474,0.00016394,2]
[394455232,1763592632447,-160.385,0.00016394,2]
[394455233,1763592632456,-307.75,0.00016394,2]
[394455234,1763592632466,-9999.99,0.00016394,2]
[394455235,1763592632475,-9999.99,0.00016394,2]
[394455236,1763592632484,-509.65,0.00016394,2]
[394455237,1763592632493,-155.49,0.00016394,2]
[394455238,1763592632503,-999.99,0.00016394,2]
[394455239,1763592632512,-150.99,0.00016394,2]
[394455240,1763592632521,-345.34,0.00016394,2]
[394455241,1763592632531,-1593.09,0.00016394,2]
[394455242,1763592632540,-4285.90314576,0.00016395,2]
[394455243,1763592632553,-710.4772749,0.00016395,2]
[394455244,1763592632567,-28028.11027842,0.00016395,2]
[394455245,1763592632576,-1189.14,0.00016395,2]
[394455246,1763592632585,-495.71,0.00016395,2]
[394455247,1763592632594,-150.99,0.00016395,2]
[394455248,1763592632603,-499.99,0.00016395,2]
[394455249,1763592632613,-4549.26,0.00016395,2]
[394455250,1763592632622,-2949.79,0.00016395,2]
[394455251,1763592632631,-7680.32,0.00016438,2]
[394455252,1763592632640,-2377.73,0.00016438,2]
[394455253,1763592632649,-9999.99,0.00016438,2]
[394455254,1763592632659,-44244.38128957,0.00016438,2]
[394455255,1763592632675,-797.2953444,0.00016438,2]
[394455256,1763592632685,-26358.13336603,0.00016438,2]
[394455257,1763592632694,-4751.8,0.00016438,2]
[394455259,1763592632703,-724.66828594,0.00016438,2]
[394455261,1763592632712,-238.57293387,0.00016461,2]
[394455262,1763592632731,-1420.2,0.00016461,2]
[394455263,1763592632746,-582.22706613,0.00016461,2]
[394455264,1763592632755,-303.05083811,0.00016512,2]
[394455265,1763592632766,-2269.0307535,0.00016512,2]
[394455266,1763592632777,-1907.97634632,0.00016512,2]
[394455267,1763592632788,-312.0,0.00016512,2]
[394455268,1763592632799,-938.58626969,0.00016512,2]
[394455280,1763592638226,-4999.73600316,0.00016512,2]
[394455281,1763592638238,-166.66,0.00016566,2]
[394455282,1763592638248,-9999.99,0.00016566,2]
[394455283,1763592638257,-2404.0,0.00016566,2]
[394455284,1763592638267,-8463.95,0.00016566,2]
[394455285,1763592638277,-3291.0,0.00016566,2]
[394455286,1763592638287,-562.88,0.00016566,2]
[394455287,1763592638297,-5412.27,0.00016588,2]
[394455288,1763592638306,-500.0,0.00016604,2]
[394455289,1763592638315,-10730.38021078,0.00016685,2]
[394455290,1763592638324,-6659.1433,0.00016732,2]
[394455291,1763592638338,-234.87,0.00016732,2]
[394455292,1763592638358,-4078.6325,0.000168,2]
[394455293,1763592638368,-52004.5912,0.000168,2]
[394455294,1763592638377,-1000.0,0.000168,2]
[394455295,1763592638387,-225.66969964,0.00016831,2]
[394455296,1763592638396,-10730.38021078,0.00016859,2]
[394455297,1763592638406,-500.0,0.00016873,2]
[394455298,1763592638416,-500.40170696,0.00016873,2]
[394455299,1763592638425,-500.0,0.00016873,2]
[394455300,1763592638435,-171.69129294,0.00016873,2]
[394455301,1763592638444,-500.0,0.00016873,2]
[394455302,1763592638454,-500.0,0.00016873,2]
[394455304,1763592638463,-500.0,0.00016873,2]
[394455306,1763592638472,-500.0,0.00016873,2]
[394455308,1763592638482,-500.0,0.00016873,2]
[394455310,1763592638491,-6032.25626538,0.00016873,2]
[394455312,1763592638506,-2003.58187372,0.00016873,2]
[394455314,1763592638517,-1877.37012887,0.00016873,2]
[394455317,1763592638529,-3762.04915518,0.00016873,2]
[394455319,1763592638540,-285.06134771,0.00016873,2]
[394455321,1763592638551,-2469.39715957,0.00016873,2]
[394455323,1763592638563,-6813.49970763,0.00016873,2]
[394455325,1763592638572,-166.66,0.00016888,2]
[394455327,1763592638582,-500.0,0.00016899,2]
[394455329,1763592638591,-500.0,0.00016899,2]
[394455331,1763592638601,-500.0,0.00016899,2]
[394455332,1763592638610,-500.0,0.00016899,2]
[394455333,1763592638619,-500.0,0.00016899,2]
[394455334,1763592638628,-500.0,0.00016899,2]
[394455335,1763592638637,-224.7779188,0.00016899,2]
[394455336,1763592638647,-500.0,0.00016899,2]
[394455337,1763592638657,-500.0,0.00016899,2]
[394455338,1763592638669,-500.0,0.00016899,2]
[394455339,1763592638678,-500.0,0.00016899,2]
[394455341,1763592638688,-500.0,0.00016899,2]
[394455343,1763592638698,-500.0,0.00016899,2]
[394455345,1763592638707,-500.0,0.00016899,2]
[394455347,1763592638717,-500.0,0.00016899,2]
[394455349,1763592638727,-500.0,0.00016899,2]
[394455351,1763592638737,-500.0,0.00016899,2]
[394455353,1763592638746,-500.0,0.00016899,2]
[394455355,1763592638757,-500.0,0.00016899,2]
[394455357,1763592638766,-500.0,0.00016899,2]
[394455359,1763592638775,-500.0,0.00016899,2]
[394455361,1763592638785,-500.0,0.00016899,2]
[394455363,1763592638795,-500.0,0.00016899,2]
[394455365,1763592638804,-330.4161979,0.00016899,2]
[394455367,1763592638813,-500.0,0.00016899,2]
[394455369,1763592638823,-500.0,0.00016899,2]
[394455371,1763592638833,-500.0,0.00016899,2]
[394455373,1763592638842,-1462.69,0.00016899,2]
[394455375,1763592638852,-1462.69,0.00016899,2]
[394455377,1763592638861,-1462.69,0.00016899,2]
[394455379,1763592638871,-2642.73,0.00016932,2]
[394455381,1763592638881,-500.0,0.00016959,2]
[394455383,1763592638890,-308.20130097,0.00016973,2]
[394455385,1763592638900,-502.23946923,0.00016973,2]
[394455387,1763592638909,-500.0,0.00016973,2]
[394455389,1763592638919,-500.0,0.00016973,2]
[394455391,1763592638928,-213.97835211,0.00016973,2]
[394455393,1763592638937,-500.0,0.00016973,2]
[394455395,1763592638947,-500.0,0.00016973,2]
[394455397,1763592638956,-500.0,0.00016973,2]
[394455399,1763592638966,-500.0,0.00016973,2]
[394455401,1763592638976,-500.0,0.00016973,2]
[394455403,1763592638986,-500.0,0.00016973,2]
[394455405,1763592638996,-500.0,0.00016973,2]
[394455407,1763592639005,-500.0,0.00016973,2]
[394455409,1763592639015,-500.0,0.00016973,2]
[394455411,1763592639025,-500.0,0.00016973,2]
[394455413,1763592639035,-500.0,0.00016973,2]
[394455415,1763592639045,-500.0,0.00016973,2]
[394455417,1763592639054,-305.63534545,0.00016973,2]
[394455419,1763592639065,-500.0,0.00016973,2]
[394455421,1763592639074,-500.0,0.00016973,2]
[394455423,1763592639084,-164.76118439,0.00016973,2]
[394455425,1763592639093,-500.0,0.00016973,2]
[394455426,1763592639102,-496.43366972,0.00016973,2]
[394455427,1763592639112,-500.49324665,0.00016973,2]
[394455428,1763592639121,-527.49052074,0.00016973,2]
[394455429,1763592639130,-500.0,0.00016973,2]
[394455430,1763592639140,-500.0,0.00016986,2]
[394455431,1763592639149,-500.0,0.00016986,2]
[394455432,1763592639159,-235630.14,0.00016986,2]
[394455433,1763592639168,-23243.21563798,0.00016987,2]
[394455434,1763592639179,-1500.0,0.00017,2]
[394455435,1763592639189,-250.0,0.00017,2]
[394455436,1763592639199,-205.79,0.00017017,2]
[394455437,1763592639208,-10730.38021078,0.00017032,2]
[394455438,1763592639218,-23243.21563798,0.00017101,2]
[394455439,1763592639227,-280.0,0.00017153,2]
[394455440,1763592639237,-10730.38021078,0.00017206,2]
[394455441,1763592639246,-23243.21563798,0.00017215,2]
[394455442,1763592639256,-151.0,0.00017237,2]
[394455443,1763592639266,-151.0,0.00017246,2]
[394455444,1763592639275,-229.0,0.00017288,2]
[394455445,1763592639284,-1562.43668398,0.00017321,2]
[394455446,1763592639292,-23243.21563798,0.00017329,2]
[394455447,1763592639302,-10730.38021078,0.00017379,2]
[394455448,1763592639311,-1562.43668397,0.00017418,2]
[394455449,1763592639320,-500.0,0.0001742,2]
[394455450,1763592639329,-500.0,0.0001742,2]
[394455451,1763592639339,-1462.69,0.0001742,2]
[394455452,1763592639348,-1000.0,0.00017421,2]
[394455453,1763592639357,-1000.0,0.00017421,2]
[394455454,1763592639366,-1000.0,0.00017421,2]
[394455455,1763592639375,-280.0,0.00017434,2]
[394455456,1763592639384,-23243.21563798,0.00017444,2]
[394455457,1763592639393,-280.0,0.0001747,2]
[394455458,1763592639402,-500.0,0.00017473,2]
[394455459,1763592639411,-500.0,0.00017473,2]
[394455460,1763592639420,-500.0,0.00017473,2]
[394455461,1763592639430,-500.0,0.00017473,2]
[394455462,1763592639439,-161.55812693,0.00017473,2]
[394455463,1763592639448,-500.0,0.00017473,2]
[394455464,1763592639457,-315.85569772,0.00017473,2]
[394455465,1763592639466,-500.0,0.00017473,2]
[394455466,1763592639475,-280.0,0.00017487,2]
[394455467,1763592639485,-935.0,0.00017508,2]
[394455468,1763592639495,-1562.43668397,0.00017514,2]
[394455469,1763592639504,-1009.90200273,0.00017521,2]
[394455470,1763592639514,-295.91820015,0.00017521,2]
[394455471,1763592639523,-1000.0,0.00017521,2]